lending/lending_fUSD_20260206
["ID","MTS","AMOUNT","RATE_DAILY","PERIOD"]
[404660536,1770391838294,-29493.9909153,9.538e-05,2]
[404660537,1770391838307,-332.99999985,9.538e-05,2]
[404660538,1770391838392,-80999.99999995,9.538e-05,2]
[404660539,1770391838503,-719714.53995482,9.538e-05,2]
[404660541,1770391838513,-150.0,9.566e-05,2]
[404660542,1770391838523,-214.22629628,9.566e-05,2]
[404660543,1770391838533,-150.0,9.621e-05,2]
[404660545,1770391838545,-178.92,9.628e-05,2]
[404660546,1770391838555,-904.07758914,9.693e-05,2]
[404660547,1770391838565,-169.10485022,9.719e-05,2]
[404660548,1770391838575,-169.10485022,0.0001,2]
[404660549,1770391838585,-1934.90820227,0.0001,2]
[404660550,1770391838595,-2740.47292956,0.0001,2]
[404660551,1770391838609,-22835.50697567,0.0001,2]
[404660552,1770391838619,-373.5719335,0.0001,2]
[404660553,1770391838630,-495.3761,0.00010031,2]
[404660554,1770391838639,-2500.0,0.00010032,2]
[404660555,1770391838650,-153.94837485,0.000101,2]
[404660558,1770391838659,-373.5719335,0.00010122,2]
[404660560,1770391838669,-1319999.82,0.00010132,2]
[404660562,1770391838679,-1000.0,0.00010173,2]
[404660564,1770391838689,-6728.3003,0.000102,2]
[404660566,1770391838699,-500.0,0.00010294,2]
[404660568,1770391838708,-151.0,0.00010294,2]
[404660569,1770391838718,-151.0,0.00010294,2]
[404660570,1770391838728,-151.0,0.00010294,2]
[404660571,1770391838738,-151.0,0.00010294,2]
[404660572,1770391838748,-151.0,0.00010294,2]
[404660573,1770391838758,-151.0,0.00010294,2]
[404660574,1770391838768,-151.0,0.00010294,2]
[404660575,1770391838778,-151.0,0.00010294,2]
[404660576,1770391838787,-151.0,0.00010294,2]
[404660577,1770391838797,-151.0,0.00010294,2]
[404660578,1770391838807,-151.0,0.00010294,2]
[404660579,1770391838831,-151.0,0.00010294,2]
[404660580,1770391838841,-151.0,0.00010294,2]
[404660581,1770391838853,-151.0,0.00010294,2]
[404660582,1770391838863,-151.0,0.00010294,2]
[404660583,1770391838873,-151.0,0.00010294,2]
[404660584,1770391838883,-151.0,0.00010294,2]
[404660585,1770391838893,-151.0,0.00010294,2]
[404660586,1770391838903,-151.0,0.00010294,2]
[404660587,1770391838913,-151.0,0.00010294,2]
[404660588,1770391838923,-151.0,0.00010294,2]
[404660589,1770391838933,-151.0,0.00010294,2]
[404660590,1770391838942,-151.0,0.00010294,2]
[404660591,1770391838953,-151.0,0.00010294,2]
[404660592,1770391838963,-151.0,0.00010294,2]
[404660593,1770391838973,-151.0,0.00010294,2]
[404660594,1770391838983,-151.0,0.00010294,2]
[404660595,1770391838993,-151.0,0.00010294,2]
[404660596,1770391839004,-151.0,0.00010294,2]
[404660597,1770391839013,-151.0,0.00010294,2]
[404660598,1770391839023,-151.0,0.00010294,2]
[404660599,1770391839034,-246.27155301,0.00010329,2]
[404660600,1770391839044,-300.0,0.00010329,2]
[404660601,1770391839054,-250.0,0.0001034,2]
[404660602,1770391839067,-300.0,0.0001034,2]
[404660603,1770391839077,-500.0,0.0001034,2]
[404660604,1770391839087,-300.0,0.0001034,2]
[404660605,1770391839096,-500.0,0.00010373,2]
[404660606,1770391839108,-250.0,0.00010382,2]
[404660607,1770391839119,-420.0,0.0001048,2]
[404660608,1770391839128,-1680.0,0.0001048,2]
[404660609,1770391839139,-420.0,0.0001048,2]
[404660610,1770391839149,-255.0,0.0001049,2]
[404660611,1770391839159,-930.9,0.00010554,2]
[404660612,1770391839169,-500.0,0.00010568,2]
[404660613,1770391839179,-1029.68956309,0.000108,2]
[404660614,1770391839188,-500.0,0.00010842,2]
[404660615,1770391839198,-1924.36029257,0.000109,2]
[404660616,1770391839209,-5994.6518,0.00010904,2]
[404660617,1770391839219,-1000.0,0.00010921,2]
[404660618,1770391839228,-150.0,0.00010959,2]
[404660619,1770391839238,-1000.0,0.00010999,2]
[404660620,1770391839248,-33301.6812,0.00010999,2]
[404660621,1770391839257,-2204.09609733,0.00011,2]
[404660622,1770391839267,-9502.85729564,0.00011031,2]
[404660623,1770391839276,-264.44,0.00011047,2]
[404660624,1770391839286,-15276.73603141,0.00011099,2]
[404660625,1770391839295,-15276.73603132,0.00011099,2]
[404660626,1770391839305,-500.0,0.00011116,2]
[404660627,1770391839314,-195.0,0.00011144,2]
[404660628,1770391839324,-15276.73603132,0.0001123,2]
[404660629,1770391839333,-501.25,0.00011327,2]
[404660630,1770391839343,-1215.51,0.00011327,2]
[404660631,1770391839354,-1869.37,0.00011327,2]
[404660632,1770391839364,-324.99,0.00011327,2]
[404660633,1770391839374,-3573.95,0.00011327,2]
[404660634,1770391839384,-1869.37,0.00011348,2]
[404660635,1770391839393,-904.07758914,0.00011352,2]
[404660636,1770391839403,-1869.37,0.00011369,2]
[404660637,1770391839413,-500.0,0.0001139,2]
[404660638,1770391839423,-1869.37,0.0001139,2]
[404660639,1770391839433,-1869.37,0.00011411,2]
[404660640,1770391839443,-1869.37,0.00011432,2]
[404660641,1770391839453,-1869.37,0.00011452,2]
[404660642,1770391839462,-291.24412758,0.00011468,2]
[404660643,1770391839473,-1869.37,0.00011473,2]
[404660644,1770391839482,-1869.37,0.00011494,2]
[404660645,1770391839492,-1600.0,0.0001151,2]
[404660646,1770391839502,-1869.37,0.00011515,2]
[404660647,1770391839511,-587.0,0.00011528,2]
[404660648,1770391839521,-2351.0,0.00011528,2]
[404660649,1770391839531,-200.0,0.00011528,2]
[404660650,1770391839540,-1869.37,0.00011536,2]
[404660651,1770391839551,-433.0,0.00011539,2]
[404660652,1770391839560,-178.92,0.00011553,2]
[404660653,1770391839569,-1869.37,0.00011557,2]
[404660654,1770391839578,-1869.37,0.00011578,2]
[404660655,1770391839588,-1869.37,0.00011599,2]
[404660656,1770391839597,-501.25,0.00011601,2]
[404660657,1770391839610,-1869.37,0.00011619,2]
[404660658,1770391839620,-1869.37,0.0001164,2]
[404660659,1770391839630,-1869.37,0.00011661,2]
[404660660,1770391839639,-502.96360645,0.00011664,2]
[404660661,1770391839649,-1869.37,0.00011682,2]
[404660662,1770391839659,-7363.6607146,0.00011703,2]
[404660663,1770391839669,-1869.37,0.00011703,2]
[404660664,1770391839679,-250.0,0.00011711,2]
[404660665,1770391839688,-1869.37,0.00011724,2]
[404660666,1770391839698,-501.25,0.00011875,2]
[404660667,1770391839708,-1000.0,0.00011978,2]
[404660668,1770391839717,-15276.73603132,0.00012112,2]
[404660669,1770391839727,-501.25,0.00012149,2]
[404660670,1770391839736,-1643.0547945,0.00012163,2]
[404660671,1770391839746,-5148.71,0.00012311,2]
[404660672,1770391839755,-501.25,0.00012423,2]
[404660673,1770391839765,-166.52,0.0001256,2]
[404660674,1770391839774,-9795.49,0.00012585,2]
[404660675,1770391839783,-823.0,0.00012681,2]
[404660676,1770391839793,-3292.0,0.00012681,2]
[404660677,1770391839803,-4584.8,0.00012685,2]
[404660678,1770391839812,-736.0,0.00012693,2]
[404660679,1770391839822,-501.25,0.00012697,2]
[404660680,1770391839832,-1600.0,0.00012789,2]
[404660681,1770391839841,-11888.48,0.00012864,2]
[404660682,1770391839854,-15276.73603132,0.00012994,2]
[404660683,1770391839863,-5616.6537447,0.00013,2]
[404660684,1770391839873,-357.78028329,0.00013,2]
[404660685,1770391839883,-677.9138459,0.00013,2]
[404660687,1770391840330,-2511.0,0.00013,2]
[404660688,1770391840341,-513.63552486,0.00013,2]
[404660689,1770391840365,-733.45949261,0.00013,2]
[404660690,1770391840375,-109.99495915,0.0001305,2]
[404660691,1770391840386,-1525.0,0.0001305,2]
[404660692,1770391840416,-3721.41666361,0.0001305,2]
[404660693,1770391840427,-353.58333639,0.00013475,2]
[404660694,1770391840631,-379.6600001,0.00013475,2]
[404660695,1770391840643,-266.75666351,0.00013475,2]
[404660696,1770391840652,-500.0,0.00013698,2]
[404660697,1770391840663,-500.0,0.00013698,2]
[404660698,1770391840672,-441.42781649,0.00013698,2]
[404660699,1770391840753,-58.57218351,0.00013698,2]
[404660700,1770391840764,-500.0,0.00013698,2]
[404660701,1770391840774,-500.0,0.00013698,2]
[404660702,1770391840783,-392.76776902,0.00013698,2]
[404660703,1770391840793,-500.0,0.00013698,2]
[404660704,1770391840803,-312.41,0.00013698,2]
[404660705,1770391840816,-500.0,0.00013698,2]
[404660706,1770391840825,-109.34437682,0.00013698,2]
[404660708,1770391840837,-390.65562318,0.00013698,2]
[404660709,1770391840846,-500.0,0.00013698,2]
[404660712,1770391840862,-500.0,0.00013698,2]
[404660713,1770391840872,-152.44045494,0.00013698,2]
[404660715,1770391840882,-500.0,0.00013698,2]
[404660718,1770391840891,-500.0,0.00013698,2]
[404660720,1770391840901,-648.32121275,0.00013698,2]
[404660722,1770391840910,-200.0,0.00013699,2]
[404660723,1770391840920,-267.51717557,0.00013699,2]
[404660725,1770391840929,-9999.99,0.00013699,2]
[404660728,1770391840938,-150.99,0.00013699,2]
[404660730,1770391840948,-999.99,0.00013699,2]
[404660732,1770391840958,-7202.12,0.00013699,2]
[404660734,1770391840967,-15276.73603132,0.00013875,2]
[404660736,1770391840977,-1152.0,0.00013949,2]
[404660738,1770391840986,-4609.0,0.00013949,2]
[404660740,1770391840996,-150.0,0.00013961,2]
[404660742,1770391841005,-943.0,0.00013961,2]
[404660744,1770391841015,-1600.0,0.00014068,2]
[404660745,1770391841024,-166.66,0.0001427,2]
[404660748,1770391841033,-1017.30880946,0.00014463,2]
[404660750,1770391841045,-907.05148311,0.00014463,2]
[404660752,1770391841055,-166.66,0.0001457,2]
[404660754,1770391841065,-904.07758914,0.00014672,2]
[404660756,1770391841075,-500.0,0.00014712,2]
[404660757,1770391841085,-15276.73603132,0.00014757,2]
[404660758,1770391841094,-166.66,0.00014871,2]
[404660759,1770391841107,-1000.0,0.00014972,2]
[404660760,1770391841116,-250.0,0.00015,2]
[404660761,1770391841126,-2052.7152301,0.00015,2]
[404660762,1770391841137,-7991.45940556,0.00015,2]
[404660763,1770391841146,-166.52,0.00015072,2]
[404660764,1770391841155,-166.66,0.00015171,2]
[404660765,1770391841165,-1613.0,0.00015343,2]
[404660766,1770391841175,-3859.0,0.00015343,2]
[404660767,1770391841184,-1600.0,0.00015347,2]
[404660768,1770391841194,-166.66,0.00015471,2]
[404660769,1770391841203,-15276.73603132,0.00015639,2]
[404660770,1770391841213,-166.66,0.00015772,2]
[404660771,1770391841223,-2046.94248477,0.00015807,2]
[404660772,1770391841232,-150.0,0.000159,2]
[404660773,1770391841242,-156.29914378,0.000159,2]
[404660774,1770391841252,-3319.5632726,0.00016,2]
[404660775,1770391841261,-6025.29662863,0.000162,5]
[404660776,1770391841270,-904.07758914,0.00016332,2]
[404660777,1770391841280,-648.54815331,0.00016438,2]
[404660778,1770391841289,-227.37,0.00016438,2]
[404660779,1770391841298,-1000.0,0.00016469,2]
[404660780,1770391841307,-15276.73603132,0.00016521,2]
[404660781,1770391841317,-972.51,0.0001667,2]
[404660782,1770391841326,-165.85,0.00016712,2]
[404660783,1770391841335,-2258.0,0.00016878,2]
[404660784,1770391841344,-300.0,0.00017,2]
[404660785,1770391841357,-246856.78439415,0.00017,2]
[404660786,1770391841366,-15276.73603132,0.00017403,2]
[404660787,1770391841375,-972.51,0.00017503,2]
[404660788,1770391841385,-500.0,0.00017808,2]
[404660789,1770391841394,-1000.0,0.00017966,2]
[404660790,1770391841404,-127889.37780832,0.0001799,3]
[404660791,1770391841413,-904.07758914,0.00017992,2]
[404660792,1770391841422,-7503.52481063,0.00018,2]
[404660793,1770391841432,-2551.2516386,0.00018,2]
[404660794,1770391841441,-109560.53726566,0.00018,2]
[404660795,1770391841451,-13456.85,0.000182,2]
[404660796,1770391841460,-972.51,0.00018337,2]
[404660797,1770391841469,-1479.0,0.00018566,2]
[404660798,1770391841478,-350.0,0.00019,2]
[404660799,1770391841488,-972.51,0.0001917,2]
[404660800,1770391841497,-1924.36029257,0.00019397,2]
[404660801,1770391841506,-904.07758914,0.00019651,2]
[404660802,1770391841516,-152.0173956,0.00019966,2]
[404660803,1770391841525,-972.51,0.00020004,2]
[404660804,1770391841534,-247.48,0.00020707,2]
[404660805,1770391841543,-400.0,0.00021,2]
[404660806,1770391841553,-904.07758914,0.00021311,2]
[404660807,1770391841562,-5000.0,0.00021918,2]
[404660808,1770391841572,-334.37,0.00022,7]
[404660809,1770391841581,-500.0,0.00022411,2]
[404660810,1770391841590,-500.0,0.00022466,2]
[404660811,1770391841602,-500.0,0.00022521,2]
[404660812,1770391841612,-264.44,0.00022527,2]
[404660813,1770391841622,-500.0,0.00022575,2]
[404660814,1770391841631,-1700.0,0.000226,2]
[404660815,1770391841641,-563.96761622,0.0002263,2]
[404660816,1770391841650,-675.37,0.000229,2]
[404660817,1770391841659,-904.07758914,0.00022971,2]
[404660818,1770391841669,-450.0,0.00023,2]
[404660819,1770391841679,-160.0,0.00023,2]
[404660820,1770391841688,-675.37,0.0002427,2]
[404660821,1770391841697,-1924.36029257,0.00024332,2]
[404660822,1770391841706,-904.07758914,0.00024631,2]
[404660823,1770391841715,-1000.0,0.00024658,2]
[404660824,1770391841725,-500.0,0.00025,2]
[404660825,1770391841734,-904.07758914,0.00026291,2]
[404660826,1770391841744,-153.94837484,0.00027085,2]
[404660827,1770391841754,-579.69,0.00027397,30]
[404660828,1770391841763,-300.0,0.00027397,2]
[404660829,1770391841773,-152.0,0.00027551,5]
[404660830,1770391841783,-152.93,0.00027706,2]
[404660831,1770391841793,-904.07758914,0.0002795,2]
[404660832,1770391841802,-160.0,0.00028,3]
[404660833,1770391841811,-160.0,0.00028,7]
[404660834,1770391841820,-1924.36029257,0.00029266,2]
[404660835,1770391841830,-152.93,0.00029435,14]
[404660836,1770391841839,-3240.0,0.00029556,2]
[404660837,1770391841850,-904.07758914,0.0002961,2]
[404660838,1770391841860,-2468.72,0.00029685,2]
[404660839,1770391841869,-287.51,0.00029794,2]
[404660840,1770391841879,-904.07758914,0.0003127,2]
[404660841,1770391841889,-579.69,0.00032232,30]
[404660842,1770391841898,-264.44,0.00032359,2]
[404660843,1770391841907,-2896.38776567,0.00032804,2]
[404660855,1770391844457,-1350.80788984,0.00017303,2]
[404660856,1770391844470,-313.90354229,0.00017303,2]
[404660857,1770391844483,-311.28919994,0.00017303,2]
[404660862,1770391844530,-45.00194896,0.00017303,2]
[404660863,1770391844542,-5618.56382082,0.00017303,2]
[404660864,1770391844552,-2241.43617918,0.00032804,2]
[404660865,1770391844564,-1617.23089558,0.00032804,2]
[404660866,1770391844574,-177.86,0.000329,14]
[404660867,1770391844585,-555.41,0.000329,2]
[404660868,1770391844594,-7677.21,0.000329,14]
[404660869,1770391844606,-904.07758914,0.0003293,2]
[404660870,1770391844615,-1523.27287716,0.00033,5]
[404660871,1770391844626,-2551.99999999,0.00033,5]
[404660872,1770391846667,-148234.74414075,0.00010032,2]
[404660873,1770391846681,-375.057,0.00010032,2]
[404660874,1770391846773,-1168.9664,0.00010032,2]
[404660875,1770391846785,-1599.9309531,0.00010032,2]
[404660876,1770391846799,-6019.9928199,0.00010032,2]
[404660877,1770391846811,-531.61914382,0.00010032,2]
[404660878,1770391846885,-325.39177197,0.00010032,2]
[404660895,1770391863731,476.40318991,0.00011035,120]
[404660897,1770391883665,304.51318463,9.537e-05,2]
[404660898,1770391892766,3051.299,9.831e-05,2]
[404660899,1770391892960,263.304,9.831e-05,2]
[404660903,1770392019494,-171.46816465,9.925e-05,2]
[404660904,1770392033283,226.19,9.9e-05,2]
[404660909,1770392141490,500.0,9.825e-05,2]
[404660910,1770392150906,4500.01,9.783e-05,2]
[404660911,1770392150933,2658.17,9.783e-05,2]
[404660912,1770392161987,6772.7136707,9.832e-05,2]
[404660913,1770392162018,10000.01,9.832e-05,2]
[404660914,1770392162050,10000.01,9.832e-05,2]
[404660915,1770392162081,10000.01,9.832e-05,2]
[404660916,1770392162117,10000.01,9.832e-05,2]
[404660917,1770392162150,10000.01,9.832e-05,2]
[404660918,1770392162189,10000.01,9.832e-05,2]
[404660919,1770392162223,10000.01,9.832e-05,2]
[404660920,1770392162257,10000.01,9.832e-05,2]
[404660921,1770392162290,10000.01,9.832e-05,2]
[404660922,1770392170149,-478.922499,9.782e-05,2]
[404660923,1770392187448,-300.0,9.831e-05,2]
[404660924,1770392190617,-8785.1013313,9.832e-05,2]
[404660925,1770392193679,-10000.01,9.832e-05,2]
[404660926,1770392246310,249.999999,0.00044171,120]
[404660927,1770392286151,250.0,0.00044171,120]
[404660928,1770392335211,250.0,0.00044171,120]
[404660929,1770392338440,-1910.41,9.352e-05,2]
[404660930,1770392383753,250.0,0.00044152,120]
[404660931,1770392429599,1025.29,9.098e-05,2]
[404660932,1770392435771,250.0,0.00044152,120]
[404660933,1770392441823,500.0,9.142e-05,2]
[404660935,1770392484735,1215.51,9.114e-05,2]
[404660936,1770392570777,250.0,0.00044152,120]
[404660937,1770392596150,250.0,0.00044152,120]
[404660938,1770392616432,250.0,0.00044152,120]
[404660939,1770392622591,-1876.45,9.535e-05,2]
[404660940,1770392622617,-300.0,9.549e-05,2]
[404660941,1770392622639,-250.0,9.563e-05,2]
[404660942,1770392622660,-1497.63,9.591e-05,2]
[404660943,1770392622681,-300.0,9.607e-05,2]
[404660944,1770392622702,-246.27155301,9.607e-05,2]
[404660945,1770392622726,-300.0,9.641e-05,2]
[404660946,1770392622747,-232.0,9.641e-05,2]
[404660947,1770392622770,-1200.0,9.642e-05,2]
[404660948,1770392622792,-300.0,9.642e-05,2]
[404660949,1770392622818,-6227.93,9.643e-05,2]
[404660950,1770392622844,-2441.039,9.702e-05,2]
[404660951,1770392622866,-210.643,9.702e-05,2]
[404660952,1770392622888,-2468.72,9.702e-05,2]
[404660953,1770392622910,-150.0,9.705e-05,2]
[404660954,1770392622931,-151.0,9.729e-05,2]
[404660955,1770392622952,-151.0,9.729e-05,2]
[404660956,1770392622979,-150.0,9.731e-05,2]
[404660957,1770392623001,-500.0,9.731e-05,2]
[404660958,1770392623023,-151.95117236,9.731e-05,2]
[404660959,1770392623051,-157.98992563,9.731e-05,2]
[404660960,1770392623073,-883.99608815,9.732e-05,2]
[404660961,1770392623095,-6061.7130638,9.732e-05,2]
[404660962,1770392623126,-1973791.66619705,9.732e-05,2]
[404660963,1770392687739,250.0,0.00044152,120]
[404660964,1770392703266,250.0,0.00044152,120]
[404660966,1770392729850,250.0,0.00044152,120]
[404660967,1770392771673,250.0,0.00044152,120]
[404660968,1770392786666,5000.01,9.543e-05,2]
[404660969,1770392786691,5000.01,9.543e-05,2]
[404660970,1770392786715,5000.01,9.543e-05,2]
[404660971,1770392786740,5000.01,9.543e-05,2]
[404660972,1770392786772,1000000.0,9.543e-05,2]
[404660973,1770392790881,247.48,9.475e-05,2]
[404660974,1770392792117,250.0,0.00044154,120]
[404660975,1770392794719,-2586.37999559,9.543e-05,2]
[404660976,1770392794841,-5000.01,9.543e-05,2]
[404660977,1770392838509,250.0,0.00044154,120]
[404660978,1770392877262,250.0,0.00044154,120]
[404660979,1770392896132,250.0,0.00044154,120]
[404660980,1770392902576,9752.53,9.298e-05,2]
[404660981,1770392902602,2213.52,9.298e-05,2]
[404660982,1770392916290,-151.0,9.54e-05,2]
[404660983,1770392916312,-150.0,9.542e-05,2]
[404660984,1770392916333,-300.0,9.542e-05,2]
[404660985,1770392934582,-1812.74,9.543e-05,2]
[404660986,1770392935733,-7786.49,9.543e-05,2]
[404660987,1770392935860,-10000.01,9.543e-05,2]
[404660988,1770392936537,250.0,0.00044154,120]
[404660989,1770392938194,-10000.01,9.543e-05,2]
[404660990,1770392957494,3006.338547,9.443e-05,2]
[404660991,1770392957640,500.0,0.00044139,120]
[404660992,1770392969215,-151.0,9.54e-05,2]
[404660993,1770392969240,-300.0,9.542e-05,2]
[404660994,1770392969264,-250.0,9.543e-05,2]
[404660995,1770392969294,-2419.70509654,9.543e-05,2]
[404660996,1770392973634,500.0,0.00044139,120]
[404660997,1770392991979,500.0,0.00044139,120]
[404660998,1770393019204,151.0,0.00044139,120]
[404660999,1770393019848,156.587,0.00044139,120]
[404661000,1770393020326,3000.0,0.00044139,120]
[404661001,1770393020600,162.380719,0.00044139,120]
[404661002,1770393021220,168.3888056,0.00044139,120]
[404661003,1770393021931,174.61919141,0.00044139,120]
[404661004,1770393022684,181.08010149,0.00044139,120]
[404661005,1770393026016,500.0,0.00044139,120]
[404661006,1770393026285,187.78006525,0.00044139,120]
[404661007,1770393030131,194.72792766,0.00044139,120]
[404661008,1770393030854,201.93286099,0.00044139,120]
[404661009,1770393031428,-1093.02365196,9.533e-05,2]
[404661010,1770393031441,-727.23778545,9.533e-05,2]
[404661011,1770393031500,-485.2,9.533e-05,2]
[404661012,1770393031513,-681.36057924,9.533e-05,2]
[404661013,1770393031525,-17412.10570975,9.533e-05,2]
[404661014,1770393031538,-250.0,9.538e-05,2]
[404661015,1770393031548,-1200.0,9.542e-05,2]
[404661016,1770393031558,-300.0,9.542e-05,2]
[404661017,1770393031568,-226893.27504342,9.543e-05,2]
[404661018,1770393031579,-767.05,9.543e-05,2]
[404661019,1770393031658,209.40437684,0.00044139,120]
[404661020,1770393031675,-237392.26011427,9.543e-05,2]
[404661021,1770393031685,-1991.4070198,9.543e-05,2]
[404661022,1770393031696,-5775.7447491,9.543e-05,2]
[404661023,1770393031706,-11895.78818906,9.543e-05,2]
[404661043,1770393032207,217.15233878,0.00044139,120]
[404661044,1770393032938,225.18697532,0.00044139,120]
[404661045,1770393033781,233.51889341,0.00044139,120]
[404661046,1770393034426,242.15909246,0.00044139,120]
[404661047,1770393035056,251.11897888,0.00044139,120]
[404661048,1770393035737,260.4103811,0.00044139,120]
[404661049,1770393036464,270.0455652,0.00044139,120]
[404661050,1770393037073,280.03725112,0.00044139,120]
[404661053,1770393037888,290.39862941,0.00044139,120]
[404661055,1770393038507,290.39862941,0.00044139,120]
[404661056,1770393038578,-103789.40860006,9.543e-05,2]
[404661057,1770393038755,-1851889.68119216,9.543e-05,2]
[404661058,1770393038766,-338.20970044,9.632e-05,2]
[404661059,1770393038775,-6728.3003,9.632e-05,2]
[404661060,1770393038785,-101717.75805247,9.632e-05,2]
[404661061,1770393038798,-257.19650587,9.632e-05,2]
[404661062,1770393038811,-1722.4,9.632e-05,2]
[404661063,1770393038822,-3444.4,9.632e-05,2]
[404661064,1770393038834,-1837.56,9.632e-05,2]
[404661065,1770393038846,-60787.31443404,9.632e-05,2]
[404661071,1770393039530,-4138.8,9.632e-05,2]
[404661072,1770393039638,-550.32,9.632e-05,2]
[404661073,1770393039693,-949.03946893,9.632e-05,2]
[404661074,1770393039704,-348.68001336,9.632e-05,2]
[404661075,1770393039716,-265.52757558,9.632e-05,2]
[404661076,1770393039727,-1715.33244412,9.632e-05,2]
[404661077,1770393039738,-537.1620135,9.632e-05,2]
[404661078,1770393039899,-1219.02931696,9.632e-05,2]
[404661079,1770393039999,-2325.0,9.632e-05,2]
[404661080,1770393040011,-653014.59737517,9.632e-05,2]
[404661081,1770393040020,-1000.0,9.731e-05,2]
[404661082,1770393040030,-214.22629628,9.731e-05,2]
[404661083,1770393040040,-1348.10768363,9.732e-05,2]
[404661084,1770393040052,-1151.89231637,9.732e-05,2]
[404661085,1770393040061,-373.97135843,9.825e-05,2]
[404661086,1770393040073,-87.96714157,9.825e-05,2]
[404661087,1770393040082,-451.66860701,9.842e-05,2]
[404661095,1770393045051,-422.27306249,9.842e-05,2]
[404661096,1770393045062,-13350.86333751,9.932e-05,2]
[404661097,1770393045075,-1088.75,9.932e-05,2]
[404661103,1770393045395,-1348.76778787,9.932e-05,2]
[404661104,1770393045409,-591.12831741,9.932e-05,2]
[404661105,1770393045421,-7487.46451038,9.932e-05,2]
[404661107,1770393045643,-938.57415772,9.932e-05,2]
[404661108,1770393045874,-905.81288703,9.932e-05,2]
[404661109,1770393046130,-986.8392582,9.932e-05,2]
[404661129,1770393051616,500.0,0.00044139,120]
[404661130,1770393073656,287.82,9.5e-05,2]
[404661131,1770393075850,588.51558684,0.00044139,120]
[404661132,1770393100365,-500.0,9.542e-05,2]
[404661133,1770393100402,-500.0,9.542e-05,2]
[404661134,1770393100441,-260.02862773,9.542e-05,2]
[404661135,1770393131107,339.66547363,0.00044139,120]
[404661136,1770393132931,150.0,9.73e-05,2]
[404661138,1770393133322,151.49755887,9.785e-05,2]
[404661139,1770393133400,150.0,9.73e-05,2]
[404661140,1770393133562,150.0,9.785e-05,2]
[404661141,1770393133761,150.0,9.84e-05,2]
[404661142,1770393133917,150.0,9.894e-05,2]
[404661143,1770393134459,500.0,9.73e-05,2]
[404661144,1770393134511,500.0,9.73e-05,2]
[404661145,1770393134549,500.0,9.785e-05,2]
[404661146,1770393134669,78.45518567,9.785e-05,2]
[404661147,1770393134692,421.54481433,9.785e-05,2]
[404661148,1770393134725,500.0,9.84e-05,2]
[404661149,1770393134758,150.0,9.73e-05,2]
[404661150,1770393134865,500.0,9.84e-05,2]
[404661151,1770393134904,500.0,9.894e-05,2]
[404661152,1770393134938,152.22428252,9.785e-05,2]
[404661153,1770393135007,500.0,9.73e-05,2]
[404661154,1770393135044,505.36603291,9.894e-05,2]
[404661155,1770393135194,150.0,9.73e-05,2]
[404661156,1770393135246,500.0,9.785e-05,2]
[404661157,1770393135333,150.0,9.785e-05,2]
[404661158,1770393135366,500.0,9.84e-05,2]
[404661159,1770393135511,200.69925499,9.84e-05,2]
[404661160,1770393135544,270.17561525,9.894e-05,2]
[404661161,1770393187685,500.0,9.73e-05,2]
[404661162,1770393187722,150.0,9.73e-05,2]
[404661163,1770393187815,150.0,9.73e-05,2]
[404661164,1770393187848,418.0,9.785e-05,2]
[404661165,1770393187929,150.0,9.73e-05,2]
[404661166,1770393187960,150.0,9.785e-05,2]
[404661167,1770393187991,150.0,9.785e-05,2]
[404661168,1770393188023,150.0,9.73e-05,2]
[404661169,1770393188110,161.50361344,9.785e-05,2]
[404661170,1770393188144,200.0,9.84e-05,2]
[404661171,1770393188190,150.0,9.73e-05,2]